[Event "Titled Tuesday Blitz November 15 Early 2022"]
[White "Madaminov, Mukhiddin"]
[Black "Indjic, Aleksandar"]
[WhiteFideId "14210703"]
[BlackFideId "911925"]
[WhiteElo "2341"]
[BlackElo "2592"]
[Result "1/2-1/2"]
[Round "07"]
[TimeControl "180+1"]
[Date "2022.11.15"]
[WhiteClock "0:00:15"]
[BlackClock "0:01:34"]

1. d4 {[%clk 0:02:56]}  Nf6 {[%clk 0:02:59]} 2. Nc3 {[%clk 0:02:56]}  d5 {[%clk 0:03:00]} 3. Bf4 {[%clk 0:02:57]}  a6 {[%clk 0:03:00]} 4. e3 {[%clk 0:02:57]}  b5 {[%clk 0:03:00]} 5. Bd3 {[%clk 0:02:53]}  Bb7 {[%clk 0:03:00]} 6. Nf3 {[%clk 0:02:52]}  e6 {[%clk 0:03:00]} 7. Ne2 {[%clk 0:02:51]}  Nbd7 {[%clk 0:02:58]} 8. O-O {[%clk 0:02:48]}  c5 {[%clk 0:02:58]} 9. c3 {[%clk 0:02:47]}  Be7 {[%clk 0:02:59]} 10. Ng3 {[%clk 0:02:46]}  Ne4 {[%clk 0:02:55]} 11. h4 {[%clk 0:01:55]}  Bxh4 {[%clk 0:02:39]} 12. Nxh4 {[%clk 0:01:54]}  Qxh4 {[%clk 0:02:40]} 13. Bxe4 {[%clk 0:01:53]}  dxe4 {[%clk 0:02:38]} 14. dxc5 {[%clk 0:01:53]}  Nxc5 {[%clk 0:02:29]} 15. Qd4 {[%clk 0:01:51]}  Nd3 {[%clk 0:01:59]} 16. Nxe4 {[%clk 0:01:22]}  Nxf4 {[%clk 0:01:56]} 17. Nd6+ {[%clk 0:00:58]}  Ke7 {[%clk 0:01:54]} 18. exf4 {[%clk 0:00:47]}  Rhd8 {[%clk 0:01:50]} 19. Rad1 {[%clk 0:00:37]}  Bxg2 {[%clk 0:01:33]} 20. Kxg2 {[%clk 0:00:14]}  Qg4+ {[%clk 0:01:33]} 21. Kh2 {[%clk 0:00:15]}  Qh4+ {[%clk 0:01:33]} 22. Kg2 {[%clk 0:00:15]}  Qg4+ {[%clk 0:01:34]} 23. Kh2 {[%clk 0:00:16]}  Qh4+ {[%clk 0:01:34]} 24. Kg1 {[%clk 0:00:16]}  Qg4+ {[%clk 0:01:34]} 25. Kh2 {[%clk 0:00:15]} 1/2-1/2


[Site "https://www.chess.com"]

[Event "Titled Tuesday Blitz November 15 Early 2022"]
[White "Manon-og, Ramon Jr."]
[Black "Potapova, Margarita"]
[WhiteFideId "5200776"]
[BlackFideId "14126869"]
[WhiteElo "2306"]
[BlackElo "2272"]
[Result "0-1"]
[Round "07"]
[TimeControl "180+1"]
[Date "2022.11.16"]
[WhiteClock "0:00:03"]
[BlackClock "0:00:27"]

1. e4 {[%clk 0:02:56]}  e5 {[%clk 0:02:56]} 2. Nf3 {[%clk 0:02:57]}  Nc6 {[%clk 0:02:52]} 3. Bc4 {[%clk 0:02:56]}  Nf6 {[%clk 0:02:49]} 4. Ng5 {[%clk 0:02:56]}  d5 {[%clk 0:02:47]} 5. exd5 {[%clk 0:02:57]}  Na5 {[%clk 0:02:45]} 6. Bb5+ {[%clk 0:02:58]}  c6 {[%clk 0:02:45]} 7. dxc6 {[%clk 0:02:58]}  bxc6 {[%clk 0:02:45]} 8. Bd3 {[%clk 0:02:59]}  Nd5 {[%clk 0:02:44]} 9. Nf3 {[%clk 0:02:54]}  Bd6 {[%clk 0:02:25]} 10. O-O {[%clk 0:02:53]}  O-O {[%clk 0:02:25]} 11. Re1 {[%clk 0:02:54]}  Re8 {[%clk 0:02:24]} 12. Nc3 {[%clk 0:02:53]}  Nf4 {[%clk 0:02:21]} 13. Bf1 {[%clk 0:02:33]}  c5 {[%clk 0:02:20]} 14. d3 {[%clk 0:02:32]}  Ng6 {[%clk 0:02:10]} 15. Ne4 {[%clk 0:02:22]}  Bf8 {[%clk 0:02:07]} 16. Bg5 {[%clk 0:02:16]}  Qc7 {[%clk 0:02:05]} 17. Qd2 {[%clk 0:02:09]}  Bb7 {[%clk 0:01:50]} 18. a3 {[%clk 0:01:55]}  h6 {[%clk 0:01:49]} 19. b4 {[%clk 0:01:41]}  cxb4 {[%clk 0:01:48]} 20. axb4 {[%clk 0:01:42]}  Nc6 {[%clk 0:01:48]} 21. b5 {[%clk 0:01:35]}  Nd4 {[%clk 0:01:49]} 22. Nxd4 {[%clk 0:01:34]}  exd4 {[%clk 0:01:50]} 23. b6 {[%clk 0:01:16]}  axb6 {[%clk 0:01:46]} 24. Rxa8 {[%clk 0:01:15]}  Rxa8 {[%clk 0:01:46]} 25. Bxh6 {[%clk 0:01:01]}  Bxe4 {[%clk 0:01:46]} 26. Bxg7 {[%clk 0:00:54]}  Bxg7 {[%clk 0:01:44]} 27. dxe4 {[%clk 0:00:51]}  Rc8 {[%clk 0:01:45]} 28. Bd3 {[%clk 0:00:47]}  Qf4 {[%clk 0:01:45]} 29. Qb4 {[%clk 0:00:44]}  Qc7 {[%clk 0:01:37]} 30. g3 {[%clk 0:00:41]}  Ne5 {[%clk 0:01:36]} 31. Kg2 {[%clk 0:00:38]}  Qc3 {[%clk 0:01:36]} 32. Qb1 {[%clk 0:00:36]}  b5 {[%clk 0:01:25]} 33. Rd1 {[%clk 0:00:33]}  b4 {[%clk 0:01:24]} 34. Qa2 {[%clk 0:00:33]}  Nxd3 {[%clk 0:01:20]} 35. cxd3 {[%clk 0:00:33]}  Qc2 {[%clk 0:01:20]} 36. Qa6 {[%clk 0:00:29]}  b3 {[%clk 0:01:15]} 37. Rd2 {[%clk 0:00:16]}  Qc3 {[%clk 0:01:14]} 38. Rd1 {[%clk 0:00:15]}  b2 {[%clk 0:01:11]} 39. Rb1 {[%clk 0:00:14]}  Rb8 {[%clk 0:01:09]} 40. Qa7 {[%clk 0:00:14]}  Qb3 {[%clk 0:01:08]} 41. h4 {[%clk 0:00:13]}  Rb7 {[%clk 0:01:04]} 42. Qa8+ {[%clk 0:00:13]}  Kh7 {[%clk 0:01:04]} 43. Qc8 {[%clk 0:00:14]}  Qb5 {[%clk 0:00:57]} 44. g4 {[%clk 0:00:12]}  Ra7 {[%clk 0:00:55]} 45. h5 {[%clk 0:00:08]}  Ra1 {[%clk 0:00:45]} 46. Rxb2 {[%clk 0:00:08]}  Qxb2 {[%clk 0:00:46]} 47. Qf5+ {[%clk 0:00:08]}  Kg8 {[%clk 0:00:47]} 48. g5 {[%clk 0:00:05]}  Qb1 {[%clk 0:00:42]} 49. Qc8+ {[%clk 0:00:01]}  Bf8 {[%clk 0:00:42]} 50. Kf3 {[%clk 0:00:01]}  Qd1+ {[%clk 0:00:39]} 51. Kg3 {[%clk 0:00:02]}  Qxh5 {[%clk 0:00:39]} 52. Qf5 {[%clk 0:00:02]}  Rg1+ {[%clk 0:00:38]} 53. Kf4 {[%clk 0:00:01]}  Qh4+ {[%clk 0:00:27]} 54. Ke5 {[%clk 0:00:01]}  Rxg5 {[%clk 0:00:27]} 55. Kd5 {[%clk 0:00:02]}  Rxf5+ {[%clk 0:00:27]} 56. exf5 {[%clk 0:00:03]}  Qf4 {[%clk 0:00:27]} 0-1


[Site "https://www.chess.com"]

[Event "Titled Tuesday Blitz November 15 Early 2022"]
[White "Manukyan, Sargis A."]
[Black "Atakhan, Abtin"]
[WhiteFideId "13303970"]
[BlackFideId "22502203"]
[WhiteElo "2187"]
[BlackElo "2298"]
[Result "0-1"]
[Round "07"]
[TimeControl "180+1"]
[Date "2022.11.16"]
[WhiteClock "0:00:01"]
[BlackClock "0:00:04"]

1. d4 {[%clk 0:02:56]}  Nf6 {[%clk 0:02:59]} 2. c4 {[%clk 0:02:55]}  e6 {[%clk 0:03:00]} 3. Nc3 {[%clk 0:02:55]}  Bb4 {[%clk 0:02:58]} 4. e3 {[%clk 0:02:55]}  O-O {[%clk 0:02:58]} 5. Nf3 {[%clk 0:02:54]}  b6 {[%clk 0:02:56]} 6. Bd2 {[%clk 0:02:52]}  Bb7 {[%clk 0:02:55]} 7. Bd3 {[%clk 0:02:52]}  c5 {[%clk 0:02:52]} 8. a3 {[%clk 0:02:50]}  Bxc3 {[%clk 0:02:50]} 9. Bxc3 {[%clk 0:02:51]}  Ne4 {[%clk 0:02:50]} 10. Bxe4 {[%clk 0:02:51]}  Bxe4 {[%clk 0:02:51]} 11. d5 {[%clk 0:02:52]}  d6 {[%clk 0:02:45]} 12. h4 {[%clk 0:02:34]}  Bxf3 {[%clk 0:02:39]} 13. Qxf3 {[%clk 0:02:31]}  e5 {[%clk 0:02:40]} 14. g4 {[%clk 0:02:24]}  Nd7 {[%clk 0:02:37]} 15. g5 {[%clk 0:02:24]}  f5 {[%clk 0:02:34]} 16. Qh3 {[%clk 0:02:12]}  Qe7 {[%clk 0:02:25]} 17. O-O-O {[%clk 0:01:46]}  a6 {[%clk 0:02:24]} 18. f4 {[%clk 0:01:40]}  b5 {[%clk 0:02:14]} 19. e4 {[%clk 0:01:20]}  fxe4 {[%clk 0:01:42]} 20. Qe6+ {[%clk 0:01:15]}  Qxe6 {[%clk 0:01:20]} 21. dxe6 {[%clk 0:01:14]}  Nb6 {[%clk 0:01:21]} 22. fxe5 {[%clk 0:00:56]}  dxe5 {[%clk 0:01:19]} 23. cxb5 {[%clk 0:00:53]}  axb5 {[%clk 0:01:18]} 24. Rhe1 {[%clk 0:00:38]}  Ra4 {[%clk 0:00:49]} 25. Rd6 {[%clk 0:00:25]}  Nc4 {[%clk 0:00:47]} 26. Rd7 {[%clk 0:00:23]}  Re8 {[%clk 0:00:44]} 27. Rf1 {[%clk 0:00:17]}  Rf8 {[%clk 0:00:13]} 28. Rxf8+ {[%clk 0:00:09]}  Kxf8 {[%clk 0:00:14]} 29. Rf7+ {[%clk 0:00:08]}  Kg8 {[%clk 0:00:12]} 30. Rb7 {[%clk 0:00:06]}  Ra8 {[%clk 0:00:05]} 31. Rxb5 {[%clk 0:00:04]}  e3 {[%clk 0:00:04]} 32. Kd1 {[%clk 0:00:03]}  Kf8 {[%clk 0:00:03]} 33. Ke2 {[%clk 0:00:03]}  Ke7 {[%clk 0:00:03]} 34. Rxc5 {[%clk 0:00:04]}  Nd6 {[%clk 0:00:04]} 35. Rxe5 {[%clk 0:00:04]}  g6 {[%clk 0:00:04]} 36. Rxe3 {[%clk 0:00:04]}  Nf5 {[%clk 0:00:04]} 37. Re4 {[%clk 0:00:03]}  Ng3+ {[%clk 0:00:04]} 38. Ke3 {[%clk 0:00:02]}  Nxe4 {[%clk 0:00:05]} 39. Kxe4 {[%clk 0:00:03]}  Kxe6 {[%clk 0:00:06]} 40. Kd4 {[%clk 0:00:04]}  Rf8 {[%clk 0:00:06]} 41. Kc5 {[%clk 0:00:03]}  Rf4 {[%clk 0:00:06]} 42. b4 {[%clk 0:00:04]}  Rxh4 {[%clk 0:00:06]} 43. b5 {[%clk 0:00:04]}  Rh3 {[%clk 0:00:04]} 44. Bb4 {[%clk 0:00:03]}  Kd7 {[%clk 0:00:04]} 45. Kb6 {[%clk 0:00:02]}  Rg3 {[%clk 0:00:03]} 46. a4 {[%clk 0:00:02]}  Rg4 {[%clk 0:00:03]} 47. Kc5 {[%clk 0:00:01]}  Rxg5+ {[%clk 0:00:03]} 48. Kb6 {[%clk 0:00:01]}  Rg4 {[%clk 0:00:04]} 0-1


[Site "https://www.chess.com"]

[Event "Titled Tuesday Blitz November 15 Early 2022"]
[White "Martinez Alcantara, Jose Eduardo"]
[Black "Nakamura, Hikaru"]
[WhiteFideId "3805662"]
[BlackFideId "2016192"]
[WhiteElo "2705"]
[BlackElo "2909"]
[Result "1-0"]
[Round "07"]
[TimeControl "180+1"]
[Date "2022.11.15"]
[WhiteClock "0:00:12"]
[BlackClock "0:00:12"]

1. e4 {[%clk 0:03:00]}  g6 {[%clk 0:03:00]} 2. d4 {[%clk 0:03:00]}  Bg7 {[%clk 0:03:00]} 3. c3 {[%clk 0:03:01]}  d6 {[%clk 0:03:00]} 4. Nf3 {[%clk 0:03:02]}  Nf6 {[%clk 0:02:59]} 5. Bd3 {[%clk 0:03:02]}  Nc6 {[%clk 0:02:59]} 6. h3 {[%clk 0:03:03]}  e5 {[%clk 0:03:00]} 7. O-O {[%clk 0:03:03]}  O-O {[%clk 0:03:00]} 8. Re1 {[%clk 0:03:03]}  Re8 {[%clk 0:02:56]} 9. Bc2 {[%clk 0:03:03]}  Bd7 {[%clk 0:02:49]} 10. Bg5 {[%clk 0:02:54]}  h6 {[%clk 0:02:48]} 11. Bh4 {[%clk 0:02:54]}  exd4 {[%clk 0:02:43]} 12. cxd4 {[%clk 0:02:53]}  g5 {[%clk 0:02:43]} 13. Bg3 {[%clk 0:02:54]}  Nh5 {[%clk 0:02:42]} 14. Bh2 {[%clk 0:02:02]}  g4 {[%clk 0:02:41]} 15. hxg4 {[%clk 0:02:02]}  Bxg4 {[%clk 0:02:41]} 16. Ba4 {[%clk 0:02:03]}  Nxd4 {[%clk 0:02:16]} 17. Bxe8 {[%clk 0:01:59]}  Bxf3 {[%clk 0:02:16]} 18. gxf3 {[%clk 0:01:55]}  Qxe8 {[%clk 0:01:58]} 19. Kh1 {[%clk 0:01:41]}  Qe6 {[%clk 0:01:51]} 20. Rg1 {[%clk 0:01:32]}  c5 {[%clk 0:01:50]} 21. Nd2 {[%clk 0:01:24]}  Kh8 {[%clk 0:01:23]} 22. f4 {[%clk 0:01:11]}  Nf6 {[%clk 0:01:21]} 23. f3 {[%clk 0:01:07]}  Qh3 {[%clk 0:01:14]} 24. Qf1 {[%clk 0:00:58]}  Qh5 {[%clk 0:01:12]} 25. Rg3 {[%clk 0:00:56]}  Nd7 {[%clk 0:00:54]} 26. Qg2 {[%clk 0:00:52]}  Ne6 {[%clk 0:00:53]} 27. Rh3 {[%clk 0:00:37]}  Qg6 {[%clk 0:00:53]} 28. f5 {[%clk 0:00:33]}  Qxg2+ {[%clk 0:00:53]} 29. Kxg2 {[%clk 0:00:34]}  Ng5 {[%clk 0:00:53]} 30. Rh4 {[%clk 0:00:34]}  d5 {[%clk 0:00:45]} 31. e5 {[%clk 0:00:24]}  c4 {[%clk 0:00:27]} 32. f4 {[%clk 0:00:23]}  Nh7 {[%clk 0:00:27]} 33. f6 {[%clk 0:00:23]}  Bf8 {[%clk 0:00:27]} 34. Nf3 {[%clk 0:00:23]}  Nc5 {[%clk 0:00:28]} 35. Rd1 {[%clk 0:00:23]}  Nd3 {[%clk 0:00:28]} 36. Ne1 {[%clk 0:00:17]}  Nxe1+ {[%clk 0:00:20]} 37. Rxe1 {[%clk 0:00:17]}  d4 {[%clk 0:00:21]} 38. f5 {[%clk 0:00:17]}  Rd8 {[%clk 0:00:17]} 39. Bf4 {[%clk 0:00:17]}  d3 {[%clk 0:00:13]} 40. Bxh6 {[%clk 0:00:16]}  d2 {[%clk 0:00:12]} 41. Rd1 {[%clk 0:00:16]}  Bxh6 {[%clk 0:00:11]} 42. Rxh6 {[%clk 0:00:17]}  b5 {[%clk 0:00:12]} 43. Rdh1 {[%clk 0:00:12]} 1-0


[Site "https://www.chess.com"]

[Event "Titled Tuesday Blitz November 15 Early 2022"]
[White "Matveeva, Olga"]
[Black "Marcolino, Daniel Mattos"]
[WhiteFideId "24107018"]
[BlackFideId "2106841"]
[WhiteElo "2055"]
[BlackElo "2119"]
[Result "1-0"]
[Round "07"]
[TimeControl "180+1"]
[Date "2022.11.16"]
[WhiteClock "0:00:25"]
[BlackClock "0:00:15"]

1. d4 {[%clk 0:03:00]}  Nf6 {[%clk 0:02:59]} 2. c4 {[%clk 0:02:59]}  e6 {[%clk 0:02:59]} 3. g3 {[%clk 0:02:59]}  d5 {[%clk 0:02:58]} 4. Nf3 {[%clk 0:02:58]}  dxc4 {[%clk 0:02:56]} 5. Bg2 {[%clk 0:02:57]}  a6 {[%clk 0:02:55]} 6. Ne5 {[%clk 0:02:57]}  Nbd7 {[%clk 0:02:50]} 7. Nxc4 {[%clk 0:02:54]}  Be7 {[%clk 0:02:43]} 8. O-O {[%clk 0:02:53]}  O-O {[%clk 0:02:43]} 9. Nc3 {[%clk 0:02:53]}  c5 {[%clk 0:02:42]} 10. Bg5 {[%clk 0:02:35]}  cxd4 {[%clk 0:02:36]} 11. Qxd4 {[%clk 0:02:33]}  h6 {[%clk 0:02:35]} 12. Bxf6 {[%clk 0:02:21]}  Bxf6 {[%clk 0:02:31]} 13. Qd2 {[%clk 0:02:11]}  Rb8 {[%clk 0:02:27]} 14. Rfd1 {[%clk 0:02:06]}  Qe7 {[%clk 0:02:20]} 15. Qd6 {[%clk 0:02:00]}  b5 {[%clk 0:02:12]} 16. Na5 {[%clk 0:01:55]}  Qxd6 {[%clk 0:02:09]} 17. Rxd6 {[%clk 0:01:56]}  Ne5 {[%clk 0:01:33]} 18. Rad1 {[%clk 0:01:47]}  Nc4 {[%clk 0:01:29]} 19. Nc6 {[%clk 0:01:17]}  Rb6 {[%clk 0:01:13]} 20. Ne4 {[%clk 0:00:35]}  Nxd6 {[%clk 0:01:09]} 21. Rxd6 {[%clk 0:00:36]}  Bxb2 {[%clk 0:01:00]} 22. Ne7+ {[%clk 0:00:35]}  Kh8 {[%clk 0:00:55]} 23. Rxb6 {[%clk 0:00:33]}  Rd8 {[%clk 0:00:37]} 24. Nd6 {[%clk 0:00:29]}  Bd4 {[%clk 0:00:17]} 25. Nxf7+ {[%clk 0:00:28]}  Kh7 {[%clk 0:00:15]} 26. Nxd8 {[%clk 0:00:25]}  Bxb6 {[%clk 0:00:15]} 27. Nxc8 {[%clk 0:00:25]} 1-0


[Site "https://www.chess.com"]

[Event "Titled Tuesday Blitz November 15 Early 2022"]
[White "Mgeladze, Tamaz"]
[Black "Makridis, Dimitrios"]
[WhiteFideId "13601202"]
[BlackFideId "25864475"]
[WhiteElo "2288"]
[BlackElo "2272"]
[Result "1-0"]
[Round "07"]
[TimeControl "180+1"]
[Date "2022.11.15"]
[WhiteClock "0:00:36"]
[BlackClock "0:00:01"]

1. c4 {[%clk 0:03:00]}  Nf6 {[%clk 0:02:06]} 2. Nc3 {[%clk 0:02:59]}  g6 {[%clk 0:02:05]} 3. g3 {[%clk 0:03:00]}  Bg7 {[%clk 0:02:06]} 4. Bg2 {[%clk 0:03:00]}  O-O {[%clk 0:02:03]} 5. Nf3 {[%clk 0:03:01]}  c6 {[%clk 0:02:04]} 6. d3 {[%clk 0:02:59]}  d5 {[%clk 0:02:05]} 7. Qb3 {[%clk 0:03:00]}  Na6 {[%clk 0:02:05]} 8. cxd5 {[%clk 0:03:00]}  cxd5 {[%clk 0:02:05]} 9. O-O {[%clk 0:02:59]}  d4 {[%clk 0:02:03]} 10. Nb5 {[%clk 0:02:55]}  e5 {[%clk 0:01:48]} 11. Nxe5 {[%clk 0:02:49]}  Nc5 {[%clk 0:01:42]} 12. Qa3 {[%clk 0:02:47]}  Ne6 {[%clk 0:01:36]} 13. Nc4 {[%clk 0:02:41]}  a6 {[%clk 0:01:33]} 14. Nbd6 {[%clk 0:02:38]}  Ra7 {[%clk 0:01:33]} 15. Bd2 {[%clk 0:02:31]}  b5 {[%clk 0:01:06]} 16. Nxc8 {[%clk 0:02:31]}  Qxc8 {[%clk 0:01:06]} 17. Nd6 {[%clk 0:02:31]}  Qb8 {[%clk 0:01:04]} 18. Rac1 {[%clk 0:02:27]}  h6 {[%clk 0:00:49]} 19. Ne4 {[%clk 0:02:25]}  Nxe4 {[%clk 0:00:44]} 20. Bxe4 {[%clk 0:02:26]}  Rc8 {[%clk 0:00:44]} 21. Rxc8+ {[%clk 0:02:14]}  Qxc8 {[%clk 0:00:45]} 22. Rc1 {[%clk 0:02:15]}  Rc7 {[%clk 0:00:45]} 23. Rxc7 {[%clk 0:02:14]}  Qxc7 {[%clk 0:00:44]} 24. Qb3 {[%clk 0:01:58]}  Nc5 {[%clk 0:00:40]} 25. Qc2 {[%clk 0:01:52]}  Qb6 {[%clk 0:00:39]} 26. Bf3 {[%clk 0:01:47]}  Kh7 {[%clk 0:00:31]} 27. Bb4 {[%clk 0:01:41]}  Ne6 {[%clk 0:00:31]} 28. h4 {[%clk 0:01:37]}  a5 {[%clk 0:00:30]} 29. Bd2 {[%clk 0:01:35]}  h5 {[%clk 0:00:20]} 30. Kg2 {[%clk 0:01:35]}  a4 {[%clk 0:00:19]} 31. Bb4 {[%clk 0:01:34]}  Qd8 {[%clk 0:00:18]} 32. Qc6 {[%clk 0:01:32]}  Qb8 {[%clk 0:00:18]} 33. Bd6 {[%clk 0:01:31]}  Qd8 {[%clk 0:00:16]} 34. Bb4 {[%clk 0:01:12]}  Bf6 {[%clk 0:00:11]} 35. Qxb5 {[%clk 0:01:09]}  Bxh4 {[%clk 0:00:11]} 36. gxh4 {[%clk 0:01:05]}  Qxh4 {[%clk 0:00:12]} 37. Bd6 {[%clk 0:00:58]}  a3 {[%clk 0:00:06]} 38. bxa3 {[%clk 0:00:59]}  Qd8 {[%clk 0:00:05]} 39. Qe5 {[%clk 0:00:51]}  Qh4 {[%clk 0:00:03]} 40. Qg3 {[%clk 0:00:50]}  Qd8 {[%clk 0:00:03]} 41. Be5 {[%clk 0:00:45]}  g5 {[%clk 0:00:02]} 42. Bxh5 {[%clk 0:00:43]}  Kg8 {[%clk 0:00:02]} 43. Bf3 {[%clk 0:00:42]}  Qa5 {[%clk 0:00:02]} 44. Bd6 {[%clk 0:00:37]}  Qf5 {[%clk 0:00:01]} 45. Qe5 {[%clk 0:00:36]} 1-0


[Site "https://www.chess.com"]

[Event "Titled Tuesday Blitz November 15 Early 2022"]
[White "Mika, Tomasz"]
[Black "Goltseva, Ekaterina"]
[WhiteFideId "1132970"]
[BlackFideId "24173770"]
[WhiteElo "2126"]
[BlackElo "2200"]
[Result "0-1"]
[Round "07"]
[TimeControl "180+1"]
[Date "2022.11.16"]
[WhiteClock "0:00:06"]
[BlackClock "0:00:25"]

1. Nf3 {[%clk 0:02:58]}  Nf6 {[%clk 0:02:49]} 2. c4 {[%clk 0:02:58]}  e6 {[%clk 0:02:48]} 3. g3 {[%clk 0:02:54]}  d5 {[%clk 0:02:47]} 4. b3 {[%clk 0:02:55]}  d4 {[%clk 0:02:44]} 5. Bb2 {[%clk 0:02:50]}  c5 {[%clk 0:02:40]} 6. b4 {[%clk 0:02:46]}  Nc6 {[%clk 0:02:38]} 7. b5 {[%clk 0:02:44]}  Na5 {[%clk 0:02:34]} 8. e3 {[%clk 0:02:44]}  d3 {[%clk 0:02:28]} 9. Ne5 {[%clk 0:02:37]}  Nxc4 {[%clk 0:02:21]} 10. Nxc4 {[%clk 0:02:29]}  Qd5 {[%clk 0:02:20]} 11. Rg1 {[%clk 0:02:23]}  Qxc4 {[%clk 0:02:17]} 12. Qb3 {[%clk 0:02:03]}  Qxb3 {[%clk 0:01:49]} 13. axb3 {[%clk 0:02:04]}  Nd5 {[%clk 0:01:49]} 14. Ba3 {[%clk 0:01:33]}  Be7 {[%clk 0:01:13]} 15. Bxd3 {[%clk 0:01:32]}  Bf6 {[%clk 0:01:13]} 16. Ra2 {[%clk 0:01:22]}  b6 {[%clk 0:01:09]} 17. f4 {[%clk 0:01:05]}  Bd7 {[%clk 0:01:07]} 18. e4 {[%clk 0:01:01]}  Bd4 {[%clk 0:01:06]} 19. Rf1 {[%clk 0:00:50]}  Nc7 {[%clk 0:01:05]} 20. Nc3 {[%clk 0:00:47]}  Bxc3 {[%clk 0:01:04]} 21. dxc3 {[%clk 0:00:47]}  Bxb5 {[%clk 0:01:04]} 22. c4 {[%clk 0:00:45]}  Bc6 {[%clk 0:01:03]} 23. Bb2 {[%clk 0:00:44]}  f6 {[%clk 0:00:57]} 24. g4 {[%clk 0:00:41]}  Ke7 {[%clk 0:00:55]} 25. g5 {[%clk 0:00:39]}  a5 {[%clk 0:00:50]} 26. Rg1 {[%clk 0:00:38]}  Rhg8 {[%clk 0:00:47]} 27. Bc3 {[%clk 0:00:31]}  Kf7 {[%clk 0:00:46]} 28. Kf2 {[%clk 0:00:31]}  Ne8 {[%clk 0:00:41]} 29. f5 {[%clk 0:00:26]}  e5 {[%clk 0:00:37]} 30. Ke3 {[%clk 0:00:18]}  Nd6 {[%clk 0:00:34]} 31. Bc2 {[%clk 0:00:11]}  a4 {[%clk 0:00:31]} 32. gxf6 {[%clk 0:00:11]}  gxf6 {[%clk 0:00:27]} 33. Rxg8 {[%clk 0:00:10]}  Kxg8 {[%clk 0:00:27]} 34. Ra1 {[%clk 0:00:05]}  axb3 {[%clk 0:00:24]} 35. Rxa8+ {[%clk 0:00:05]}  Bxa8 {[%clk 0:00:25]} 36. Bxb3 {[%clk 0:00:06]}  Bxe4 {[%clk 0:00:25]} 0-1


[Site "https://www.chess.com"]

[Event "Titled Tuesday Blitz November 15 Early 2022"]
[White "Mladenovic, Stefan"]
[Black "Lenderman, Aleksandr"]
[WhiteFideId "942227"]
[BlackFideId "2021285"]
[WhiteElo "2337"]
[BlackElo "2607"]
[Result "1/2-1/2"]
[Round "07"]
[TimeControl "180+1"]
[Date "2022.11.15"]
[WhiteClock "0:00:05"]
[BlackClock "0:00:37"]

1. d4 {[%clk 0:03:00]}  e6 {[%clk 0:03:00]} 2. Nf3 {[%clk 0:03:00]}  c5 {[%clk 0:02:59]} 3. e3 {[%clk 0:03:00]}  Nf6 {[%clk 0:02:58]} 4. Bd3 {[%clk 0:03:01]}  d5 {[%clk 0:02:53]} 5. O-O {[%clk 0:03:00]}  Nc6 {[%clk 0:02:53]} 6. b3 {[%clk 0:03:01]}  cxd4 {[%clk 0:02:49]} 7. exd4 {[%clk 0:03:00]}  g6 {[%clk 0:02:50]} 8. Bb2 {[%clk 0:03:00]}  Bg7 {[%clk 0:02:50]} 9. a3 {[%clk 0:03:00]}  O-O {[%clk 0:02:50]} 10. Qe2 {[%clk 0:03:00]}  b6 {[%clk 0:02:49]} 11. Ne5 {[%clk 0:02:59]}  Bb7 {[%clk 0:02:49]} 12. Nd2 {[%clk 0:02:59]}  Rc8 {[%clk 0:02:49]} 13. f4 {[%clk 0:02:58]}  Ne7 {[%clk 0:02:48]} 14. g4 {[%clk 0:02:53]}  Qc7 {[%clk 0:02:44]} 15. f5 {[%clk 0:02:50]}  exf5 {[%clk 0:02:42]} 16. gxf5 {[%clk 0:02:50]}  Nxf5 {[%clk 0:02:42]} 17. Rxf5 {[%clk 0:02:43]}  gxf5 {[%clk 0:02:43]} 18. Bxf5 {[%clk 0:02:43]}  Rce8 {[%clk 0:02:39]} 19. Qf3 {[%clk 0:02:32]}  Bc8 {[%clk 0:02:36]} 20. Bd3 {[%clk 0:02:28]}  Be6 {[%clk 0:02:15]} 21. Rf1 {[%clk 0:02:26]}  Qc8 {[%clk 0:02:15]} 22. Qg3 {[%clk 0:02:25]}  Kh8 {[%clk 0:02:09]} 23. Qh4 {[%clk 0:02:25]}  Ne4 {[%clk 0:02:09]} 24. Nxe4 {[%clk 0:02:20]}  dxe4 {[%clk 0:02:09]} 25. Bxe4 {[%clk 0:02:20]}  f5 {[%clk 0:02:05]} 26. Ng6+ {[%clk 0:02:15]}  Kg8 {[%clk 0:02:04]} 27. Nxf8 {[%clk 0:02:11]}  Rxf8 {[%clk 0:02:05]} 28. Bd3 {[%clk 0:02:08]}  Bd5 {[%clk 0:02:04]} 29. c4 {[%clk 0:01:58]}  Bb7 {[%clk 0:02:04]} 30. Qg5 {[%clk 0:01:45]}  Rf6 {[%clk 0:01:58]} 31. Bxf5 {[%clk 0:01:41]}  Qf8 {[%clk 0:01:34]} 32. d5 {[%clk 0:01:30]}  Qc5+ {[%clk 0:01:34]} 33. Rf2 {[%clk 0:01:25]}  Rf7 {[%clk 0:01:27]} 34. Bxh7+ {[%clk 0:01:21]}  Kh8 {[%clk 0:01:23]} 35. Bxg7+ {[%clk 0:01:01]}  Rxg7 {[%clk 0:01:24]} 36. Bg6 {[%clk 0:01:00]}  Qd4 {[%clk 0:01:14]} 37. Qd8+ {[%clk 0:00:27]}  Rg8 {[%clk 0:01:14]} 38. Qf6+ {[%clk 0:00:27]}  Qxf6 {[%clk 0:01:09]} 39. Rxf6 {[%clk 0:00:28]}  Bc8 {[%clk 0:00:59]} 40. Kf2 {[%clk 0:00:28]}  Kg7 {[%clk 0:00:59]} 41. Rc6 {[%clk 0:00:24]}  Rh8 {[%clk 0:00:58]} 42. Kg2 {[%clk 0:00:10]}  Bh3+ {[%clk 0:00:53]} 43. Kg3 {[%clk 0:00:09]}  Bf1 {[%clk 0:00:54]} 44. Bf5 {[%clk 0:00:07]}  Rd8 {[%clk 0:00:54]} 45. Kf4 {[%clk 0:00:07]}  Rh8 {[%clk 0:00:54]} 46. h3 {[%clk 0:00:07]}  Bxh3 {[%clk 0:00:53]} 47. Bxh3 {[%clk 0:00:08]}  Rxh3 {[%clk 0:00:52]} 48. Ke5 {[%clk 0:00:07]}  Rxb3 {[%clk 0:00:51]} 49. Rc7+ {[%clk 0:00:08]}  Kg6 {[%clk 0:00:51]} 50. Rxa7 {[%clk 0:00:08]}  Rc3 {[%clk 0:00:49]} 51. Kd4 {[%clk 0:00:09]}  Rc1 {[%clk 0:00:50]} 52. Rb7 {[%clk 0:00:09]}  Rb1 {[%clk 0:00:50]} 53. a4 {[%clk 0:00:09]}  Kf5 {[%clk 0:00:50]} 54. d6 {[%clk 0:00:08]}  Rd1+ {[%clk 0:00:49]} 55. Kc3 {[%clk 0:00:08]}  Rxd6 {[%clk 0:00:50]} 56. Kb4 {[%clk 0:00:09]}  Rc6 {[%clk 0:00:46]} 57. Kb5 {[%clk 0:00:07]}  Rc5+ {[%clk 0:00:46]} 58. Kb4 {[%clk 0:00:07]}  Rc6 {[%clk 0:00:47]} 59. Rd7 {[%clk 0:00:05]}  Ke6 {[%clk 0:00:47]} 60. Rd5 {[%clk 0:00:05]}  Rc8 {[%clk 0:00:43]} 61. Kb5 {[%clk 0:00:04]}  Ra8 {[%clk 0:00:44]} 62. Kxb6 {[%clk 0:00:03]}  Rxa4 {[%clk 0:00:44]} 63. Rc5 {[%clk 0:00:02]}  Kd6 {[%clk 0:00:40]} 64. Rd5+ {[%clk 0:00:02]}  Ke6 {[%clk 0:00:41]} 65. Kb5 {[%clk 0:00:02]}  Ra8 {[%clk 0:00:38]} 66. Rd2 {[%clk 0:00:03]}  Rb8+ {[%clk 0:00:38]} 67. Ka5 {[%clk 0:00:02]}  Rc8 {[%clk 0:00:38]} 68. Rc2 {[%clk 0:00:02]}  Kd6 {[%clk 0:00:37]} 69. Kb6 {[%clk 0:00:03]}  Rb8+ {[%clk 0:00:38]} 70. Ka7 {[%clk 0:00:03]}  Kc7 {[%clk 0:00:36]} 71. c5 {[%clk 0:00:03]}  Rb1 {[%clk 0:00:35]} 72. Ka6 {[%clk 0:00:03]}  Kc6 {[%clk 0:00:36]} 73. Ka5 {[%clk 0:00:04]}  Rb5+ {[%clk 0:00:36]} 74. Ka4 {[%clk 0:00:04]}  Rxc5 {[%clk 0:00:36]} 75. Rxc5+ {[%clk 0:00:05]}  Kxc5 {[%clk 0:00:37]} 1/2-1/2


[Site "https://www.chess.com"]